bitfinex/quotes_ETHUSD_20241215
["timestamp","ask_amount","ask_price","bid_price","bid_amount"]
[1734301732841,0.02892675,3880.2,3879.3,1.00913597]
[1734301733949,0.12954132,3880.4,3879.6,1.00913597]
[1734301734154,5.57685,3880.8,3879.6,1.00913597]
[1734301734155,0.02892675,3880.7,3879.6,1.00913597]
[1734301734998,0.02892675,3880.7,3879.3,2.57776]
[1734301735352,0.53463809,3880.7,3879.4,2.57769]
[1734301735547,3.36675675,3881.1,3879.4,3.0514407]
[1734301735796,0.52318165,3880.9,3879.4,3.0514407]
[1734301735988,0.02892675,3880.8,3879.4,3.0514407]
[1734301736870,0.02892675,3880.8,3879.4,2.57769]
[1734301737072,0.02892675,3880.9,3879.4,2.57769]
[1734301737267,0.02892675,3880.9,3879.6,2.57754]
[1734301737472,3.0,3881.3,3879.6,2.57754]
[1734301737473,0.02892675,3881.3,3880.1,2.57724]
[1734301738118,0.8004,3881.6,3880.4,2.15981705]
[1734301738567,0.7929,3882.1,3880.5,3.55]
[1734301738769,0.02892675,3882.0,3880.8,2.57674]
[1734301739073,0.02892675,3882.0,3879.6,0.65425326]
[1734301739275,0.02892675,3882.0,3878.0,10.49494331]
[1734301739276,0.7929,3880.3,3879.0,0.7987]
[1734301739605,2.57747,3879.8,3879.0,0.7987]
[1734301739767,2.57744,3879.9,3879.0,0.7987]
[1734301739973,0.02892675,3879.8,3879.0,0.7987]
[1734301740172,0.26063668,3879.7,3879.0,0.7987]
[1734301740409,2.83816668,3879.7,3879.0,0.7987]
[1734301740987,0.02892675,3879.6,3879.0,0.7987]
[1734301741515,0.02892675,3879.6,3878.6,0.7991]
[1734301742017,2.57762,3879.6,3878.6,0.7991]
[1734301742219,0.02892675,3879.5,3878.6,0.7991]
[1734301743574,2.60659675,3879.5,3878.6,0.7991]
[1734301746692,0.02892675,3879.5,3878.6,0.7991]
[1734301746892,0.26065468,3879.6,3878.6,0.7991]
[1734301746893,0.02892675,3880.2,3878.6,0.7991]
[1734301747228,3.02892675,3880.2,3878.6,0.7991]
[1734301747465,0.02892675,3880.2,3878.6,0.7991]
[1734301747740,2.57768,3879.5,3878.6,0.7991]
[1734301749212,0.54002668,3879.7,3878.6,0.7991]
[1734301749498,0.51109993,3879.7,3878.6,0.7991]
[1734301750143,0.02892675,3880.1,3878.9,2.57803]
[1734301750350,3.3308,3880.5,3878.6,3.7991]
[1734301750507,0.02892675,3880.4,3878.7,0.937739]
[1734301750711,0.02892675,3880.4,3878.9,0.8067]
[1734301750926,0.02892675,3880.4,3879.1,2.57791]
[1734301751309,2.60601675,3880.4,3879.1,2.57791]
[1734301751513,0.33598168,3880.3,3879.1,2.57791]
[1734301751743,0.02892675,3880.2,3879.1,2.57791]
[1734301752633,0.02892675,3880.2,3878.9,0.8067]
[1734301752831,0.02892675,3880.2,3878.9,3.38473]
[1734301753000,2.57762,3879.6,3878.9,0.8067]
[1734301753350,0.257762,3879.5,3878.9,0.8067]
[1734301753513,2.57755,3879.7,3878.9,0.8067]
[1734301754734,0.02892675,3880.0,3878.9,0.8067]
[1734301754953,2.57759,3879.6,3878.9,0.8067]
[1734301755157,2.835349,3879.6,3878.9,0.8067]
[1734301756554,0.84832675,3879.5,3878.4,0.8058]
[1734301756754,2.57792,3879.1,3878.4,0.8058]
[1734301757228,0.02892675,3879.0,3877.5,0.8058]
[1734301757454,2.57791,3879.1,3877.5,0.8058]
[1734301757636,0.02892675,3879.0,3877.5,1.144286]
[1734301758071,2.57818,3878.7,3877.5,1.144286]
[1734301758381,0.02892675,3878.6,3877.5,3.723226]
[1734301758694,2.60704675,3878.8,3877.5,3.38474]
[1734301759176,0.02892675,3878.8,3877.5,0.8058]
[1734301759465,2.5782,3878.7,3877.5,0.8058]
[1734301759667,0.02892675,3878.6,3877.5,0.8058]
[1734301761066,0.02892675,3878.6,3877.5,0.7558]
[1734301762504,2.57827,3878.6,3877.5,0.7558]
[1734301762816,0.02892675,3878.5,3877.5,0.7558]
[1734301762974,2.57832,3878.5,3877.5,0.7558]
[1734301763171,0.28675875,3878.4,3877.5,0.7558]
[1734301763411,2.86513875,3878.4,3877.5,0.7558]
[1734301764979,0.28675875,3878.4,3877.5,0.7558]
[1734301766403,0.28675875,3878.4,3877.5,3.33474]
[1734301766607,0.02892675,3878.4,3877.5,3.33474]
[1734301766928,0.02892675,3878.9,3877.5,0.7558]
[1734301767099,2.60697675,3878.9,3877.7,2.57883]
[1734301774360,2.2254003,3878.8,3877.7,2.57883]
[1734301774651,0.02892675,3878.7,3877.7,2.57883]
[1734301775453,0.02892675,3878.8,3877.7,2.57883]
[1734301775750,0.89030584,3878.7,3877.7,2.57883]
[1734301775918,0.02892675,3878.6,3877.8,2.57877]
[1734301776325,0.02892675,3878.8,3877.8,2.57877]
[1734301776655,0.63820038,3878.8,3877.8,2.57877]
[1734301776805,0.63820038,3878.8,3877.5,0.7558]
[1734301777149,0.02892675,3878.8,3877.5,3.33477]
[1734301777358,0.02892675,3878.9,3877.8,2.57873]
[1734301778253,0.02892675,3878.9,3877.9,2.57865]
[1734301779162,0.89030163,3878.8,3877.9,2.57865]
[1734301779312,0.02892675,3878.7,3877.9,2.57865]
[1734301783336,0.02892675,3878.8,3877.9,2.57865]
[1734301783926,0.02892675,3878.8,3878.0,2.57863]
[1734301784322,3.33510258,3878.8,3878.0,2.57863]
[1734301784540,0.89152988,3878.7,3878.0,2.5786]
[1734301784740,0.02892675,3878.6,3878.0,2.5786]
[1734301784979,0.02892675,3878.6,3877.9,2.57865]
[1734301785152,0.02892675,3878.8,3877.9,2.57865]
[1734301785361,3.33568961,3878.8,3877.9,2.57865]
[1734301785565,3.33568961,3878.8,3877.5,0.7558]
[1734301785566,2.22941173,3878.7,3877.5,0.7558]
[1734301785767,4.11188961,3878.6,3877.5,0.7558]
[1734301785971,3.30676286,3878.5,3877.6,2.5789]
[1734301786147,0.41280328,3878.4,3877.6,2.5789]
[1734301787826,0.00840149,3877.7,3877.6,2.5789]
[1734301790881,0.00529743,3877.7,3877.4,2.579]
[1734301791476,0.00529743,3877.7,3876.9,3.35502]
[1734301791685,0.00529743,3877.7,3877.2,2.57917]
[1734301791843,0.00529743,3877.7,3877.0,2.57924]
[1734301792394,0.00529743,3877.7,3876.9,0.7757]
[1734301792730,0.00529743,3877.7,3876.9,3.35506]
[1734301793180,0.00529743,3877.7,3876.9,0.7757]
[1734301793397,0.81979743,3877.7,3876.9,0.7757]
[1734301793548,0.81979743,3877.7,3876.1,1.07518697]
[1734301793549,0.21864161,3877.6,3876.2,0.8119]
[1734301793761,0.21864161,3877.6,3876.4,2.57966]
[1734301793936,0.21864161,3877.6,3876.2,0.8119]
[1734301794136,0.21864161,3877.6,3876.5,2.57964]
[1734301794752,0.18971486,3877.6,3876.6,3.36157]
[1734301794967,0.21864161,3877.6,3876.6,3.36157]
[1734301795292,0.21864161,3877.6,3876.6,0.782]
[1734301795599,0.30440594,3877.5,3876.6,0.782]
[1734301797459,0.92099519,3877.4,3876.6,0.782]
[1734301797808,0.02892675,3877.4,3876.6,0.782]
[1734301798507,0.02892675,3877.4,3876.3,0.775]
[1734301798672,1.41068382,3877.5,3876.3,0.775]
[1734301798874,2.61445609,3877.4,3876.3,0.775]
[1734301799109,0.7974,3877.0,3875.9,3.3431]
[1734301799262,0.02892675,3876.9,3875.9,3.3431]
[1734301799964,0.02892675,3876.9,3875.9,0.7631]
[1734301800586,0.8923605,3876.8,3875.9,0.7631]
[1734301800901,0.02892675,3876.7,3875.9,0.7631]
[1734301801574,1.10627788,3876.9,3875.9,0.7631]
[1734301801753,2.23049239,3876.8,3875.9,0.7631]
[1734301801959,0.02892675,3876.7,3875.9,0.7631]
[1734301802387,0.02892675,3876.7,3875.8,2.58005]
[1734301802904,0.02892675,3876.8,3875.8,2.58005]
[1734301803106,0.23519022,3876.7,3875.6,0.7871]
[1734301803309,0.02892675,3876.6,3875.6,3.36732]
[1734301803675,3.68568788,3876.9,3875.6,3.36732]
[1734301804001,0.8917655,3876.8,3875.6,3.36732]
[1734301804305,0.02892675,3876.7,3875.6,3.36732]
[1734301804607,0.02892675,3876.7,3875.7,2.58016]
[1734301805163,0.02892675,3876.8,3875.7,2.58016]
[1734301805368,0.47723554,3876.8,3875.7,2.58016]
[1734301806405,2.57952,3876.7,3875.4,2.58032]
[1734301806574,0.47723554,3876.8,3875.3,4.06596031]
[1734301806575,0.02892675,3876.6,3875.3,4.06596031]
[1734301806968,0.02892675,3876.8,3875.5,2.58025]
[1734301807165,0.02892675,3876.8,3875.3,4.06596031]
[1734301807506,0.02892675,3876.8,3875.4,0.74794603]
[1734301808267,0.82632675,3877.0,3875.9,2.58002]
[1734301808807,0.82632675,3877.0,3876.0,2.57996]
[1734301809613,0.82632675,3877.0,3875.8,2.5801]
[1734301809792,0.34055768,3876.9,3875.9,2.58002]
[1734301809965,0.82632675,3877.0,3875.4,0.74794603]
[1734301809966,0.02892675,3876.8,3875.4,0.74794603]
[1734301810307,0.02892675,3876.8,3875.7,2.58016]
[1734301810665,0.02892675,3876.8,3875.8,2.5801]
[1734301810907,0.02892675,3876.9,3875.4,0.74794603]
[1734301811066,2.57945,3876.8,3875.6,2.58024]
[1734301811408,0.02892675,3876.7,3875.7,2.58016]
[1734301811616,0.02892675,3876.7,3875.4,0.74794603]
[1734301811801,0.02892675,3876.7,3875.6,2.58018]
[1734301812174,0.02892675,3876.9,3875.6,2.58018]
[1734301812394,2.79870454,3876.9,3875.6,2.58018]
[1734301813206,2.79870454,3876.9,3875.8,2.5801]
[1734301814410,0.21929454,3876.9,3875.8,2.5801]
[1734301814605,0.02892675,3876.9,3875.8,2.5801]
[1734301814908,0.02892675,3876.9,3875.5,0.7753]
[1734301815148,0.02892675,3876.9,3875.9,2.58004]
[1734301815551,0.02892675,3876.9,3876.0,2.57997]
[1734301815855,0.02892675,3876.9,3875.9,2.58004]
[1734301820336,0.02892675,3876.9,3875.7,2.58017]
[1734301820875,0.02892675,3876.9,3875.8,2.5801]
[1734301821673,0.02892675,3876.9,3876.0,2.57997]
[1734301822726,0.02892675,3876.9,3875.8,2.58011]
[1734301823325,0.7661,3876.8,3875.8,2.58011]
[1734301823526,0.02892675,3876.7,3875.8,2.58011]
[1734301825076,0.02892675,3876.7,3875.6,0.38715603]
[1734301826230,0.02892675,3876.7,3875.9,2.58004]
[1734301826875,0.84692675,3877.1,3875.7,1.01906428]
[1734301827043,0.84692675,3877.1,3876.2,2.57981]
[1734301827789,2.57938,3876.9,3875.8,3.0]
[1734301827993,0.84692675,3877.1,3875.8,3.0]
[1734301827994,0.02892675,3876.8,3875.8,3.0]
[1734301828289,0.02892675,3877.0,3875.9,0.64435031]
[1734301828496,0.02892675,3877.0,3875.8,5.58009]
[1734301830593,2.60825675,3877.0,3875.8,5.58009]
[1734301832091,2.60825675,3877.0,3875.9,2.58004]
[1734301833402,0.89181015,3876.9,3875.9,2.58004]
[1734301833604,0.02892675,3876.8,3875.9,2.58004]
[1734301833869,0.02892675,3876.8,3876.0,0.6056227]
[1734301834475,0.02892675,3876.9,3876.0,0.6056227]
[1734301835093,0.02892675,3876.9,3875.8,2.58009]
[1734301835297,3.33721896,3876.9,3875.8,2.58009]
[1734301835495,0.89237191,3876.8,3875.8,2.58009]
[1734301835686,0.02892675,3876.7,3875.8,2.58009]
[1734301836809,0.02892675,3876.8,3875.8,2.58009]
[1734301837111,0.89271639,3876.7,3875.9,0.6056277]
[1734301837312,0.92164314,3876.6,3875.9,0.6056277]
[1734301837488,0.02892675,3876.6,3875.9,0.6056277]
[1734301837691,0.02892675,3876.7,3875.9,0.6056277]
[1734301837900,0.89311438,3876.6,3875.9,0.6056277]
[1734301838095,0.89311438,3876.6,3876.0,0.36619047]
[1734301838818,1.10627788,3876.7,3876.0,0.36619047]
[1734301839036,0.89338726,3876.6,3876.0,0.36619047]
[1734301839323,0.02892675,3876.5,3875.7,0.47618703]
[1734301839497,0.02892675,3876.5,3875.6,2.58024]
[1734301839498,0.89370472,3876.4,3875.6,2.58024]
[1734301839680,0.8273,3876.4,3875.6,2.58024]
[1734301840530,0.8273,3876.4,3875.5,0.7753]
[1734301840531,0.89392182,3876.3,3875.5,0.7753]
[1734301840733,1.93357788,3876.4,3875.4,3.65554697]
[1734301840883,2.2348572,3876.3,3875.5,1.2328531]
[1734301841078,1.93357788,3876.4,3875.4,3.64094149]
[1734301841311,2.23486022,3876.3,3875.5,1.23285491]
[1734301841585,0.89394409,3876.2,3875.4,4.71612846]
[1734301841785,1.93357788,3876.4,3875.5,1.23314873]
[1734301842028,2.23539028,3876.3,3875.4,4.71612846]
[1734301842226,2.23579149,3876.2,3875.5,1.23314719]
[1734301842527,1.07735113,3876.3,3875.6,1.23314719]
[1734301842736,1.07735113,3876.1,3875.3,1.59114728]
[1734301842899,3.31341314,3876.0,3875.4,1.23363705]
[1734301843091,3.31341314,3875.9,3875.3,0.51596031]
[1734301843286,2.23606201,3875.8,3875.3,0.51596031]
[1734301843596,1.07735113,3875.9,3875.3,0.51596031]
[1734301843901,1.07735113,3875.9,3875.1,1.07518697]
[1734301843902,2.2364624,3875.8,3875.1,1.07518697]
[1734301844113,0.89458496,3875.7,3875.2,1.23379013]
[1734301844312,0.89458496,3875.7,3875.0,4.07518697]
[1734301844313,1.07735113,3875.9,3875.1,1.07518697]
[1734301844516,4.41404113,3875.7,3875.1,1.23386193]
[1734301844689,3.34293819,3875.6,3874.8,1.07518697]
[1734301844890,3.31401144,3875.5,3874.9,1.23394538]
[1734301845211,0.02892675,3875.4,3874.7,1.90738697]
[1734301845395,1.07735113,3875.6,3874.8,1.23363533]
[1734301845396,0.02892675,3875.5,3874.8,1.23363533]
[1734301845730,0.02892675,3875.5,3874.6,2.09425125]
[1734301845731,0.89450205,3875.4,3874.6,2.09425125]
[1734301846031,0.89452448,3875.3,3874.7,1.23366385]
[1734301846202,1.07735113,3875.5,3874.6,1.46768374]
[1734301846416,0.89424422,3875.4,3874.7,1.23329532]
[1734301846617,1.07735113,3875.5,3874.6,0.44861946]
[1734301846818,0.89424503,3875.4,3874.7,1.23329653]
[1734301847141,0.89424503,3875.4,3874.5,1.07518697]
[1734301847356,0.89424503,3875.4,3874.5,2.30816125]
[1734301847548,1.10627788,3875.5,3874.6,1.23297428]
[1734301847720,0.89402686,3875.4,3874.4,5.98439616]
[1734301847908,0.89402686,3875.4,3874.5,1.23299729]
[1734301848253,0.89402686,3875.4,3874.4,7.25701577]
[1734301848423,0.89402686,3875.4,3874.5,1.23269615]
[1734301848628,0.02892675,3875.5,3874.4,6.73489086]
[1734301848946,0.02892675,3875.5,3874.5,1.23269333]
[1734301849131,0.02892675,3875.5,3874.5,1.00863983]
[1734301850256,2.60927675,3875.5,3874.5,1.00863983]
[1734301850545,2.60927675,3875.5,3874.3,4.58905775]
[1734301850847,0.7963,3875.3,3874.4,4.23220167]
[1734301851057,0.02892675,3875.2,3874.3,3.09495078]
[1734301851258,0.7963,3875.3,3874.3,2.58108]
[1734301851548,0.7963,3875.3,3874.3,3.28608746]
[1734301852718,2.60943675,3875.2,3874.1,1.07518697]
[1734301852932,2.60943675,3875.2,3874.0,1.84498697]
[1734301852933,2.58051,3875.2,3874.0,1.84498697]
[1734301853107,2.60952675,3875.1,3874.1,1.23179627]
[1734301853306,3.62279268,3875.0,3873.9,0.52210658]
[1734301853538,3.62279268,3875.0,3874.0,1.23153065]
[1734301853808,3.62279268,3875.0,3873.9,0.52210658]
[1734301854030,3.62279268,3875.0,3874.0,1.23148289]
[1734301854236,3.62279268,3875.0,3874.0,0.55]
[1734301854847,0.7812,3874.8,3873.9,0.55]
[1734301855057,0.7812,3874.8,3873.8,0.55]
[1734301855058,3.39090675,3874.8,3873.8,0.55]
[1734301855210,3.36198,3874.8,3873.8,0.55]
[1734301856458,3.36198,3874.8,3873.7,3.13149]
[1734301857858,0.02892675,3875.2,3873.3,1.07518697]
[1734301857859,2.58098,3874.5,3873.3,2.58176]
[1734301858050,3.34084,3874.4,3873.3,3.66010977]
[1734301858259,3.81045023,3874.4,3873.3,3.66010977]
[1734301858549,2.61005675,3874.3,3873.2,0.55]
[1734301858754,2.61005675,3874.3,3873.1,3.60095428]
[1734301859645,0.02892675,3874.3,3873.2,2.58183]
[1734301859822,0.02892675,3874.3,3873.3,0.55]
[1734301860742,0.7557,3874.2,3873.2,0.55]
[1734301860915,0.78462675,3874.1,3873.2,0.55]
[1734301861120,1.1722751,3874.1,3873.2,0.55]
[1734301861558,1.1722751,3874.1,3873.1,0.52834977]
[1734301861559,1.1722751,3874.1,3873.1,0.55]
[1734301861763,0.78462675,3874.1,3873.1,0.55]
[1734301863563,0.78462675,3874.1,3873.1,3.13189]
[1734301867619,1.01906428,3873.7,3873.0,0.1631169]
[1734301867837,0.7884,3874.0,3873.0,0.1631169]
[1734301867838,0.7884,3873.6,3873.0,0.1631169]
[1734301869137,0.81732675,3873.6,3873.0,0.1631169]
[1734301869941,0.7884,3873.6,3873.0,0.1631169]
[1734301871843,1.12828568,3873.6,3873.0,0.1631169]
[1734301872483,1.12828568,3873.6,3873.1,2.58189]
[1734301872484,0.7884,3873.6,3873.1,2.58189]
[1734301872841,0.7884,3873.6,3873.0,0.1631169]
[1734301874594,0.7884,3873.6,3873.1,2.58188]
[1734301874812,0.7884,3873.6,3873.0,0.1631169]
[1734301875482,0.7884,3873.6,3873.0,2.7450769]
[1734301876388,0.7884,3873.6,3873.0,0.1631169]
[1734301877954,0.7884,3873.6,3873.0,2.7450569]
[1734301881563,0.7884,3873.6,3873.0,0.1631169]
[1734301881965,0.7884,3873.6,3873.0,2.7450869]
[1734301882272,0.7884,3873.6,3873.0,3.12150202]
[1734301886971,3.0,3874.7,3873.0,3.12150202]
[1734301886972,0.02892675,3874.2,3873.1,0.55]
[1734301887225,0.02892675,3874.3,3873.1,0.55]
[1734301887426,0.02892675,3874.3,3873.4,0.55]
[1734301887577,0.02892675,3874.3,3873.4,2.58169]
[1734301890504,0.02892675,3874.3,3873.2,0.8012]
[1734301890717,0.02892675,3874.3,3873.2,2.58183]
[1734301891025,0.02892675,3874.3,3873.2,3.13099263]
[1734301892811,0.7685,3874.2,3873.2,3.13099263]
[1734301893123,0.02892675,3874.1,3873.2,3.13099263]
[1734301895120,0.02892675,3874.1,3873.2,2.58183]
[1734301900309,0.89397745,3874.0,3873.2,2.58183]
[1734301901241,2.00025533,3874.1,3873.2,2.58183]
[1734301901390,0.89422381,3874.0,3873.2,2.58183]
[1734301902391,1.84585113,3874.2,3873.7,1.01906428]
[1734301902722,0.7685,3874.2,3873.7,1.37912171]
[1734301902896,0.7685,3874.2,3873.5,0.55]
[1734301903331,0.52643666,3875.2,3874.2,0.7773]
[1734301903493,0.52643666,3875.2,3875.1,7.92693428]
[1734301903700,1.02436171,3877.7,3875.1,7.92693428]
[1734301903701,2.57895,3877.6,3876.2,0.55]
[1734301903902,0.00529743,3877.7,3876.5,3.12964]
[1734301903903,2.16292992,3877.0,3876.5,3.12964]
[1734301904100,1.0813576,3877.2,3876.6,0.55]
[1734301904304,2.1132546,3877.4,3876.6,0.55]
[1734301904489,0.00529743,3877.7,3877.2,1.01906428]
[1734301905701,0.00529743,3877.7,3877.3,3.12909]
[1734301906838,0.00529743,3877.7,3877.6,0.55]
[1734301907439,0.00529743,3877.7,3877.6,3.55]
[1734301907607,0.00529743,3877.7,3877.6,0.55]
[1734301910566,0.00529743,3877.7,3877.6,0.56858102]
[1734301911769,0.00529743,3877.7,3877.6,1.91497884]
[1734301911918,0.00529743,3877.7,3877.6,2.64134782]
[1734301915463,0.00529743,3877.7,3877.6,5.64134782]
[1734301915768,0.00529743,3877.7,3877.6,5.6227668]
[1734301917376,0.00529743,3877.7,3877.6,0.72636898]
[1734301917534,0.00529743,3877.7,3877.3,3.60645281]
[1734301917535,1.54759312,3877.7,3877.3,0.60645281]
[1734301917909,0.00529743,3877.7,3877.3,0.60645281]
[1734301919239,0.00529743,3877.7,3877.4,0.55]
[1734301919556,0.00529743,3877.7,3877.6,0.55]
[1734301922675,0.00529743,3877.7,3877.6,6.12891]
[1734301922872,0.00529743,3877.7,3877.6,6.93001]
[1734301923372,0.00529743,3877.7,3877.6,15.82001]
[1734301923585,0.00529743,3877.7,3877.6,16.34402047]
[1734301923795,0.00529743,3877.7,3877.6,18.55066744]
[1734301925469,0.00529743,3877.7,3877.6,15.97175744]
[1734301926593,0.00529743,3877.7,3877.6,7.08175744]
[1734301929926,0.00529743,3877.7,3877.6,4.87511047]
[1734301930380,0.00529743,3877.7,3877.6,7.45402047]
[1734301933732,0.00529743,3877.7,3876.6,0.768]
[1734301933733,0.77939743,3877.7,3876.6,0.768]
[1734301934279,0.77629153,3877.7,3876.7,0.51042946]
[1734301934648,0.77629153,3877.7,3876.6,3.34758]
[1734301934876,0.77629153,3877.7,3876.7,0.334758]
[1734301935242,0.77629153,3877.7,3876.3,14.40106812]
[1734301935243,3.35514153,3877.7,3876.4,2.57969]
[1734301936266,3.35514153,3877.7,3876.6,0.55]
[1734301939394,0.77629153,3877.7,3876.8,2.57944]
[1734301939555,0.77629153,3877.7,3876.9,0.862944]
[1734301939902,0.00219153,3877.7,3877.3,0.55]
[1734301941356,0.00219153,3877.7,3877.5,2.57897]
[1734301941586,0.00219153,3877.7,3877.6,0.55]
[1734301941774,0.00219153,3877.7,3877.3,0.55]
[1734301941976,0.00219153,3877.7,3877.3,3.12908]
[1734301942178,0.00219153,3877.7,3877.5,0.55]
[1734301944425,0.00219153,3877.7,3877.6,3.12891]
[1734301950268,0.00219153,3877.7,3877.6,6.95181]
[1734301950907,0.00219153,3877.7,3877.6,8.19381101]
[1734301952784,0.00219153,3877.7,3877.6,9.27527597]
[1734301953002,0.00219153,3877.7,3877.6,9.49989216]
[1734301953206,0.00219153,3877.7,3877.6,12.7784602]
[1734301954821,0.00219153,3877.7,3877.6,12.77858419]
[1734301955591,0.00219153,3877.7,3877.6,12.77829034]
[1734301956632,0.00219153,3877.7,3877.6,12.77819808]
[1734301962103,0.00219153,3877.7,3877.6,11.95529808]
[1734301962303,0.00219153,3877.7,3877.6,9.20567653]
[1734301962528,0.00219153,3877.7,3877.6,8.12711615]
[1734301963417,0.00219153,3877.7,3877.6,9.20542488]
[1734301963615,0.00219153,3877.7,3877.6,9.75542488]
[1734301964146,0.00219153,3877.7,3877.6,8.6768645]
[1734301965534,0.00219153,3877.7,3877.6,9.75542488]
[1734301967351,0.00219153,3877.7,3877.6,9.75552281]
[1734301967642,0.00219153,3877.7,3877.6,8.6768645]
[1734301968245,0.00219153,3877.7,3877.6,9.69460121]
[1734301972353,0.00219153,3877.7,3877.6,9.69455089]
[1734301976962,0.00219153,3877.7,3877.6,9.69451053]
[1734301978227,0.00219153,3877.7,3877.6,12.97327521]
[1734301978429,0.00219153,3877.7,3877.6,9.69451053]
[1734301980345,0.00219153,3877.7,3877.6,12.97332217]
[1734301980741,0.00219153,3877.7,3877.6,12.9740027]
[1734301980962,0.00219153,3877.7,3877.6,9.69519106]
[1734301981145,0.00219153,3877.7,3877.6,10.77373405]
[1734301981346,0.00219153,3877.7,3877.6,9.69519106]
[1734301981552,0.00219153,3877.7,3877.6,10.77399929]
[1734301983381,0.00219153,3877.7,3877.6,9.69519106]
[1734301984369,0.00219153,3877.7,3877.6,12.97596708]
[1734301984606,0.00219153,3877.7,3877.6,12.97747193]
[1734301985380,0.00219153,3877.7,3877.6,11.35527449]
[1734301985882,0.00219153,3877.7,3877.6,11.35587931]
[1734301986478,0.00219153,3877.7,3877.6,8.67956402]
[1734301986691,0.00219153,3877.7,3877.6,12.97770326]
[1734301986897,0.00219153,3877.7,3877.6,11.95996655]
[1734301987106,0.00219153,3877.7,3877.6,12.97770326]
[1734301989424,0.00219153,3877.7,3877.6,11.35697391]
[1734301993330,0.00219153,3877.7,3877.6,13.51990383]
[1734301993654,0.00219153,3877.7,3877.6,11.35807826]
[1734301994035,1.53e-06,3877.7,3877.6,15.34454489]
[1734301994224,1.62181167,3880.0,3879.1,4.3558]
[1734301994535,0.7542,3880.5,3879.1,4.3558]
[1734301994536,0.7542,3880.5,3880.4,3.12705]
[1734301994729,6.36048595,3882.2,3880.4,3.12705]
[1734301994730,0.7542,3882.0,3880.8,2.57675]
[1734301994915,0.7542,3881.8,3881.2,1.01773671]
[1734301995119,0.7542,3881.8,3880.9,4.71487675]
[1734301995120,0.7542,3881.8,3881.5,1.01773671]
[1734301995527,0.7542,3881.8,3881.2,1.01773671]
[1734301996005,0.7542,3881.8,3881.0,0.55]
[1734301996568,0.7542,3881.8,3881.2,2.15922701]
[1734301996707,0.7542,3881.8,3881.3,0.55]
[1734302001361,0.7542,3881.8,3881.1,0.55]
[1734302001665,3.0,3882.7,3881.4,0.55]
[1734302001871,1.320646,3882.6,3881.4,0.55]
[1734302002156,1.320646,3882.6,3881.5,0.55]
[1734302003118,1.320646,3882.6,3881.7,6.12618]
[1734302003367,0.7631,3882.6,3881.7,6.12618]
[1734302003570,0.7631,3882.6,3881.8,2.5761]
[1734302003732,0.7631,3882.6,3881.9,0.55]
[1734302003933,0.7631,3882.6,3882.0,2.57597]
[1734302004287,0.7631,3882.6,3882.1,0.55]
[1734302004630,2.15922701,3884.4,3882.1,0.55]
[1734302004631,0.8236,3883.8,3883.3,2.57511]
[1734302004829,0.8236,3883.8,3883.4,0.55]
[1734302014999,0.8236,3883.8,3883.0,3.55]
[1734302015151,0.339828,3883.7,3883.0,3.55]
[1734302015807,0.8236,3883.8,3883.0,3.55]
[1734302015992,0.8236,3883.8,3883.0,0.55]
[1734302016155,0.8236,3883.8,3882.9,0.55]
[1734302016513,0.8236,3883.8,3882.9,2.70922701]
[1734302017494,1.163421,3883.8,3882.9,2.70922701]
[1734302020213,0.7982,3884.7,3883.3,2.15922701]
[1734302020360,0.7982,3884.7,3883.6,2.5749]
[1734302020706,0.7982,3884.7,3883.4,0.55]
[1734302021284,0.7982,3884.7,3883.7,0.55]
[1734302021484,0.337227,3884.6,3883.7,0.55]
[1734302022001,0.337227,3884.6,3883.4,0.55]
[1734302022389,0.337227,3884.6,3883.6,0.55]
[1734302022589,0.337227,3884.6,3883.4,0.55]
[1734302022813,0.3709567,3884.5,3883.4,0.55]
[1734302023019,0.3709567,3884.5,3883.7,0.55]
[1734302023230,0.3709567,3884.5,3883.8,0.0804289]
[1734302023413,0.3709567,3884.5,3883.6,0.55]
[1734302023616,0.3709567,3884.5,3883.8,0.55]
[1734302024113,0.3709567,3884.5,3883.7,0.55]
[1734302024320,0.7982,3884.7,3883.9,0.55]
[1734302024688,0.7982,3884.7,3884.1,0.55]
[1734302025093,0.7982,3884.7,3883.8,0.55]
[1734302025296,0.7982,3884.7,3884.0,0.55]
[1734302025494,0.7982,3884.7,3884.1,0.08042543]
[1734302025847,1.13542,3884.7,3884.2,0.08042543]
[1734302026016,1.13542,3884.7,3883.7,2.57485]
[1734302026017,1.13542,3884.7,3883.8,0.55]
[1734302026231,1.13542,3884.7,3884.0,0.55]
[1734302026432,1.13542,3884.7,3884.1,0.08042665]
[1734302026738,1.13542,3884.7,3884.2,0.08042665]
[1734302027440,1.13542,3884.7,3883.9,3.12468]
[1734302027592,0.7982,3884.7,3883.9,3.12468]
[1734302028043,0.7982,3884.7,3884.1,0.55]
[1734302028252,0.7982,3884.7,3883.9,0.55]
[1734302028535,0.7859,3885.3,3884.0,0.7852]
[1734302028736,3.35971,3885.3,3884.1,0.55]
[1734302029292,3.35971,3885.3,3884.1,3.12459]
[1734302029697,2.57393,3885.1,3884.1,0.55]
[1734302029899,2.57393,3885.1,3884.0,0.55]
[1734302030107,0.335983,3885.0,3884.0,0.55]
[1734302030497,0.335983,3885.0,3884.0,2.57465]
[1734302030697,0.335983,3885.0,3884.1,0.55]
[1734302030921,0.335983,3885.0,3883.9,0.55]
[1734302031244,0.8174,3884.9,3883.9,0.55]
[1734302031546,0.8174,3884.9,3883.9,3.12472]
[1734302033316,0.8174,3884.9,3884.2,2.5745]
[1734302033629,0.8174,3884.9,3884.3,0.55]
[1734302034148,2.57372,3885.5,3882.9,2.57539]
[1734302034149,2.5746,3884.1,3882.9,2.57539]
[1734302034350,1.0917,3884.0,3882.9,2.57539]
[1734302034847,1.0917,3884.0,3883.2,2.57519]
[1734302035148,0.7584,3884.0,3882.9,3.07848241]
[1734302035848,0.7584,3884.0,3883.0,0.55]
[1734302038721,0.7584,3884.0,3883.0,3.12532]
[1734302040206,1.091694,3884.0,3882.9,0.55]
[1734302041043,1.091694,3884.0,3882.9,3.12538]
[1734302043324,1.091694,3884.0,3883.0,2.57532]
[1734302043661,1.091694,3884.0,3883.1,0.55]
[1734302044366,1.091694,3884.0,3883.2,0.55]
[1734302047506,1.091694,3884.0,3883.4,0.55]